[Event "Live Chess"]
[Site "Chess.com"]
[Date "2024.06.02"]
[Round "-"]
[White "KeithArkell"]
[Black "Sir_Sigmund"]
[Result "1-0"]
[WhiteElo "2412"]
[BlackElo "1853"]
[TimeControl "300"]
[EndTime "16:39:56 PDT"]
[Termination "KeithArkell won by resignation"]

1. d4 {[%clk 0:04:57.5]} 1... g6 {[%clk 0:04:57.1]} 2. Nf3 {[%clk 0:04:56.9]}
2... Bg7 {[%clk 0:04:56.6]} 3. c4 {[%clk 0:04:56.6]} 3... Nf6 {[%clk 0:04:55.5]}
4. Nc3 {[%clk 0:04:56.1]} 4... O-O {[%clk 0:04:52.8]} 5. g3 {[%clk 0:04:55.6]}
5... d6 {[%clk 0:04:51.9]} 6. Bg2 {[%clk 0:04:55.1]} 6... c6 {[%clk 0:04:50.9]}
7. O-O {[%clk 0:04:53.9]} 7... Re8 {[%clk 0:04:47]} 8. Bf4 {[%clk 0:04:52.4]}
8... Nh5 {[%clk 0:04:40.8]} 9. Be3 {[%clk 0:04:50.9]} 9... f5 {[%clk 0:04:31.4]}
10. Qd2 {[%clk 0:04:49.3]} 10... Nd7 {[%clk 0:04:24.4]} 11. d5 {[%clk
0:04:48.5]} 11... c5 {[%clk 0:04:19.6]} 12. Bh6 {[%clk 0:04:46]} 12... Ne5
{[%clk 0:04:05.1]} 13. Bxg7 {[%clk 0:04:43.5]} 13... Nxf3+ {[%clk 0:04:03.9]}
14. Bxf3 {[%clk 0:04:41.7]} 14... Nxg7 {[%clk 0:04:00.8]} 15. e3 {[%clk
0:04:40.8]} 15... Bd7 {[%clk 0:03:53.6]} 16. Rab1 {[%clk 0:04:40.3]} 16... Qc7
{[%clk 0:03:39.9]} 17. Rfc1 {[%clk 0:04:36]} 17... Rad8 {[%clk 0:03:29.8]} 18.
b4 {[%clk 0:04:35]} 18... b6 {[%clk 0:03:27]} 19. bxc5 {[%clk 0:04:32.8]} 19...
dxc5 {[%clk 0:03:23.5]} 20. a4 {[%clk 0:04:26.6]} 20... Qd6 {[%clk 0:03:11.1]}
21. a5 {[%clk 0:04:25.8]} 21... e5 {[%clk 0:03:01.1]} 22. axb6 {[%clk
0:04:22.9]} 22... axb6 {[%clk 0:02:58.3]} 23. e4 {[%clk 0:04:21.8]} 23... fxe4
{[%clk 0:02:48.8]} 24. Nxe4 {[%clk 0:04:20.7]} 24... Qb8 {[%clk 0:02:36.5]} 25.
Nf6+ {[%clk 0:04:19]} 25... Kh8 {[%clk 0:02:27.9]} 26. Nxe8 {[%clk 0:04:17.6]}
26... Rxe8 {[%clk 0:02:19.6]} 27. Be4 {[%clk 0:04:13.7]} 27... Nf5 {[%clk
0:02:16.1]} 28. Bxf5 {[%clk 0:04:13.1]} 28... Bxf5 {[%clk 0:02:14.6]} 29. Rb2
{[%clk 0:04:11.6]} 29... Qa7 {[%clk 0:02:03.6]} 30. d6 {[%clk 0:04:09.4]} 30...
Qb7 {[%clk 0:01:50.9]} 31. Qd5 {[%clk 0:04:05.6]} 31... Rb8 {[%clk 0:01:41.5]}
32. Qxe5+ {[%clk 0:04:03.9]} 32... Kg8 {[%clk 0:01:39.1]} 33. Qd5+ {[%clk
0:04:02.3]} 33... Kh8 {[%clk 0:01:37.4]} 34. Qxb7 {[%clk 0:04:01]} 34... Rxb7
{[%clk 0:01:36.2]} 35. d7 {[%clk 0:03:55.8]} 35... Bxd7 {[%clk 0:01:32.2]} 36.
Rcb1 {[%clk 0:03:55.1]} 36... Be6 {[%clk 0:01:25.6]} 37. Rxb6 {[%clk 0:03:53.3]}
37... Rxb6 {[%clk 0:01:24.6]} 38. Rxb6 {[%clk 0:03:53.2]} 38... Bxc4 {[%clk
0:01:23.6]} 39. Rc6 {[%clk 0:03:52.6]} 39... Bd3 {[%clk 0:01:22.3]} 40. Rxc5
{[%clk 0:03:51.8]} 40... Kg7 {[%clk 0:01:21.8]} 41. f3 {[%clk 0:03:51.3]} 41...
Kf6 {[%clk 0:01:20.5]} 42. Kf2 {[%clk 0:03:50.4]} 42... Ke6 {[%clk 0:01:14]} 43.
h4 {[%clk 0:03:48.9]} 43... Kd6 {[%clk 0:01:08.7]} 44. Ra5 {[%clk 0:03:47.6]}
44... h5 {[%clk 0:01:05.3]} 45. Ke3 {[%clk 0:03:46.7]} 45... Bc2 {[%clk
0:01:02.8]} 46. Ra6+ {[%clk 0:03:45]} 46... Kd5 {[%clk 0:00:59.1]} 47. Ra5+
{[%clk 0:03:42]} 47... Ke6 {[%clk 0:00:55.2]} 48. Kf4 {[%clk 0:03:41.4]} 48...
Kf6 {[%clk 0:00:53.7]} 49. Ra6+ {[%clk 0:03:40.4]} 49... Kg7 {[%clk 0:00:51.5]}
50. Kg5 {[%clk 0:03:39.8]} 50... Bf5 {[%clk 0:00:49.5]} 51. Ra7+ {[%clk
0:03:38.7]} 51... Kf8 {[%clk 0:00:46.5]} 52. Kf6 {[%clk 0:03:38.2]} 52... Ke8
{[%clk 0:00:44.1]} 53. Rg7 {[%clk 0:03:37.3]} 53... Kf8 {[%clk 0:00:39.3]} 54.
Rxg6 {[%clk 0:03:36.6]} 1-0

[Event "Live Chess"]
[Site "Chess.com"]
[Date "2024.06.02"]
[Round "-"]
[White "nigelst"]
[Black "Rusty_Bridges"]
[Result "1-0"]
[WhiteElo "1716"]
[BlackElo "1472"]
[TimeControl "300"]
[EndTime "16:40:34 PDT"]
[Termination "nigelst won by resignation"]

1. e4 {[%clk 0:04:57.9]} 1... d6 {[%clk 0:04:57.7]} 2. d4 {[%clk 0:04:55.2]}
2... Nf6 {[%clk 0:04:56.3]} 3. Nc3 {[%clk 0:04:54.6]} 3... Nbd7 {[%clk
0:04:55.3]} 4. f4 {[%clk 0:04:53.8]} 4... h6 {[%clk 0:04:52.2]} 5. Nf3 {[%clk
0:04:53.2]} 5... b6 {[%clk 0:04:51]} 6. Bc4 {[%clk 0:04:49.3]} 6... Bb7 {[%clk
0:04:48.9]} 7. e5 {[%clk 0:04:47.9]} 7... Ne4 {[%clk 0:04:43.2]} 8. Nxe4 {[%clk
0:04:44.8]} 8... Bxe4 {[%clk 0:04:41.7]} 9. Qe2 {[%clk 0:04:32.9]} 9... Bb7
{[%clk 0:04:28.6]} 10. e6 {[%clk 0:03:56.4]} 10... fxe6 {[%clk 0:04:11.8]} 11.
Qxe6 {[%clk 0:03:53.5]} 11... d5 {[%clk 0:04:00.4]} 12. Bxd5 {[%clk 0:03:46.3]}
12... Bxd5 {[%clk 0:03:58.5]} 13. Qxd5 {[%clk 0:03:44.7]} 13... Rb8 {[%clk
0:03:53.8]} 14. O-O {[%clk 0:03:38]} 14... Nf6 {[%clk 0:03:50.4]} 15. Qb3 {[%clk
0:03:29.8]} 15... Qd5 {[%clk 0:03:44.5]} 16. Qe3 {[%clk 0:03:25.8]} 16... Ng4
{[%clk 0:03:35.6]} 17. Qd3 {[%clk 0:03:11.7]} 17... Qh5 {[%clk 0:03:16.4]} 18.
h3 {[%clk 0:03:08.5]} 18... Nf6 {[%clk 0:03:11.7]} 19. Qb5+ {[%clk 0:03:03.2]}
19... Kd8 {[%clk 0:03:07.2]} 20. Ne5 {[%clk 0:02:53]} 20... e6 {[%clk
0:02:37.7]} 21. Nc6+ {[%clk 0:02:33.6]} 21... Kc8 {[%clk 0:02:32.3]} 22. Nxa7+
{[%clk 0:02:31.3]} 22... Kd8 {[%clk 0:02:25.2]} 23. Nc6+ {[%clk 0:02:27]} 23...
Kc8 {[%clk 0:02:23.4]} 24. Qxh5 {[%clk 0:02:24.4]} 24... Nxh5 {[%clk 0:02:21.5]}
25. Nxb8 {[%clk 0:02:21.7]} 25... Kxb8 {[%clk 0:02:19.8]} 26. Be3 {[%clk
0:02:20.5]} 26... Bd6 {[%clk 0:02:17]} 27. c4 {[%clk 0:02:17.8]} 27... Rf8
{[%clk 0:02:15]} 28. c5 {[%clk 0:02:15.4]} 28... bxc5 {[%clk 0:02:13.9]} 29.
dxc5 {[%clk 0:02:12.2]} 29... Bxf4 {[%clk 0:02:12.2]} 30. Bxf4 {[%clk
0:02:10.8]} 30... Rxf4 {[%clk 0:02:05.5]} 31. Rxf4 {[%clk 0:02:06.9]} 31... Nxf4
{[%clk 0:02:05.4]} 32. b4 {[%clk 0:02:01.4]} 32... e5 {[%clk 0:02:03.5]} 33. a3
{[%clk 0:01:54.6]} 33... Kb7 {[%clk 0:01:59.8]} 34. Kf2 {[%clk 0:01:52.8]} 34...
Kc6 {[%clk 0:01:57.1]} 35. Kf3 {[%clk 0:01:49.9]} 35... Kb5 {[%clk 0:01:54.9]}
36. Ke4 {[%clk 0:01:47.9]} 36... Ng6 {[%clk 0:01:51.7]} 1-0

[Event "Live Chess"]
[Site "Chess.com"]
[Date "2024.06.02"]
[Round "-"]
[White "NebodarMatevich"]
[Black "Crowded_House"]
[Result "0-1"]
[WhiteElo "1556"]
[BlackElo "1724"]
[TimeControl "300"]
[EndTime "16:41:26 PDT"]
[Termination "Crowded_House won by resignation"]

1. e4 {[%clk 0:04:59]} 1... e6 {[%clk 0:04:58.3]} 2. b3 {[%clk 0:04:57.9]} 2...
d5 {[%clk 0:04:57.3]} 3. Bb2 {[%clk 0:04:57.4]} 3... dxe4 {[%clk 0:04:56]} 4.
Nc3 {[%clk 0:04:57]} 4... Nf6 {[%clk 0:04:54.6]} 5. Qe2 {[%clk 0:04:56.5]} 5...
Bd6 {[%clk 0:04:51.1]} 6. O-O-O {[%clk 0:04:55.9]} 6... O-O {[%clk 0:04:49.6]}
7. Nxe4 {[%clk 0:04:54.6]} 7... Nxe4 {[%clk 0:04:42.8]} 8. Qxe4 {[%clk 0:04:54]}
8... Nd7 {[%clk 0:04:37.6]} 9. f4 {[%clk 0:04:50]} 9... Nf6 {[%clk 0:04:36.5]}
10. Qf3 {[%clk 0:04:33.7]} 10... Rb8 {[%clk 0:04:33.4]} 11. g4 {[%clk
0:04:32.7]} 11... h6 {[%clk 0:04:32.3]} 12. h4 {[%clk 0:04:31]} 12... b6 {[%clk
0:04:19.1]} 13. g5 {[%clk 0:04:30.3]} 13... Bb7 {[%clk 0:04:18.2]} 14. Qg4
{[%clk 0:04:18.4]} 14... Nxg4 {[%clk 0:04:15.7]} 0-1

[Event "Live Chess"]
[Site "Chess.com"]
[Date "2024.06.02"]
[Round "-"]
[White "Outspanner"]
[Black "Yegorych"]
[Result "0-1"]
[WhiteElo "1527"]
[BlackElo "1545"]
[TimeControl "300"]
[EndTime "16:41:32 PDT"]
[Termination "Yegorych won on time"]

1. d4 {[%clk 0:04:56.8]} 1... Nf6 {[%clk 0:04:52.2]} 2. Bg5 {[%clk 0:04:54]}
2... Ne4 {[%clk 0:04:49]} 3. h4 {[%clk 0:04:52.4]} 3... h6 {[%clk 0:04:43.2]} 4.
Bf4 {[%clk 0:04:50.6]} 4... Nc6 {[%clk 0:04:36]} 5. f3 {[%clk 0:04:48.8]} 5...
Nf6 {[%clk 0:04:32.8]} 6. e4 {[%clk 0:04:47.8]} 6... d5 {[%clk 0:04:25.2]} 7. e5
{[%clk 0:04:45.4]} 7... Nh5 {[%clk 0:04:22.5]} 8. Bh2 {[%clk 0:04:38.1]} 8... g5
{[%clk 0:04:18.4]} 9. g4 {[%clk 0:04:30.8]} 9... Nf4 {[%clk 0:04:13.3]} 10. Bxf4
{[%clk 0:04:26.4]} 10... gxf4 {[%clk 0:04:13.2]} 11. Bb5 {[%clk 0:04:11.8]}
11... Bd7 {[%clk 0:04:09.5]} 12. Qd2 {[%clk 0:04:08.1]} 12... a6 {[%clk
0:04:04.6]} 13. Bxc6 {[%clk 0:04:06.2]} 13... Bxc6 {[%clk 0:04:04.5]} 14. Qxf4
{[%clk 0:04:05.5]} 14... e6 {[%clk 0:03:56.7]} 15. Nc3 {[%clk 0:03:53]} 15...
Be7 {[%clk 0:03:53.5]} 16. O-O-O {[%clk 0:03:19.8]} 16... Bxh4 {[%clk 0:03:50]}
17. Kb1 {[%clk 0:03:05.4]} 17... Bg5 {[%clk 0:03:40.8]} 18. Qg3 {[%clk
0:03:04.4]} 18... Qd7 {[%clk 0:03:18.6]} 19. f4 {[%clk 0:03:03]} 19... Be7
{[%clk 0:03:14.8]} 20. Nf3 {[%clk 0:02:50.5]} 20... O-O-O {[%clk 0:03:09.8]} 21.
Rh5 {[%clk 0:02:24.1]} 21... Bb5 {[%clk 0:03:04.6]} 22. Rdh1 {[%clk 0:02:19]}
22... Bb4 {[%clk 0:02:54.4]} 23. Nd2 {[%clk 0:02:10.4]} 23... a5 {[%clk
0:02:28]} 24. Rxh6 {[%clk 0:02:08.2]} 24... Rxh6 {[%clk 0:02:27.4]} 25. Rxh6
{[%clk 0:02:06.9]} 25... a4 {[%clk 0:02:24]} 26. Rh7 {[%clk 0:01:37.1]} 26... a3
{[%clk 0:02:16.5]} 27. Nxb5 {[%clk 0:01:35.6]} 27... Qxb5 {[%clk 0:02:10.2]} 28.
c3 {[%clk 0:00:51.5]} 28... Qe2 {[%clk 0:02:02.1]} 29. Kc2 {[%clk 0:00:20.2]}
29... axb2 {[%clk 0:01:39.1]} 30. cxb4 {[%clk 0:00:16.7]} 30... Qb5 {[%clk
0:01:19.4]} 31. Qc3 {[%clk 0:00:10.8]} 31... Qe2 {[%clk 0:01:09.6]} 32. Kxb2
{[%clk 0:00:09.2]} 32... Qxg4 {[%clk 0:01:00.4]} 33. Rxf7 {[%clk 0:00:07.6]}
33... c6 {[%clk 0:00:57.1]} 34. b5 {[%clk 0:00:05.4]} 34... Qg6 {[%clk
0:00:46.1]} 35. bxc6 {[%clk 0:00:02.9]} 35... Qxf7 {[%clk 0:00:44.2]} 36. cxb7+
{[%clk 0:00:02.2]} 36... Kxb7 {[%clk 0:00:43.1]} 0-1

[Event "Live Chess"]
[Site "Chess.com"]
[Date "2024.06.02"]
[Round "-"]
[White "CarmelJane"]
[Black "Silverback7829"]
[Result "1-0"]
[WhiteElo "2078"]
[BlackElo "902"]
[TimeControl "300"]
[EndTime "16:41:46 PDT"]
[Termination "CarmelJane won by checkmate"]

1. e4 {[%clk 0:04:55.9]} 1... e5 {[%clk 0:04:58.3]} 2. Nf3 {[%clk 0:04:54.7]}
2... Nc6 {[%clk 0:04:56.2]} 3. d4 {[%clk 0:04:54.1]} 3... d6 {[%clk 0:04:51.6]}
4. dxe5 {[%clk 0:04:49.3]} 4... dxe5 {[%clk 0:04:49.1]} 5. Qxd8+ {[%clk
0:04:46.1]} 5... Nxd8 {[%clk 0:04:46.9]} 6. Nxe5 {[%clk 0:04:44.2]} 6... f6
{[%clk 0:04:35.5]} 7. Nf3 {[%clk 0:04:40.4]} 7... Bg4 {[%clk 0:04:29.2]} 8. Be2
{[%clk 0:04:39]} 8... Bxf3 {[%clk 0:04:26.7]} 9. Bxf3 {[%clk 0:04:37.7]} 9...
Bb4+ {[%clk 0:04:23.5]} 10. c3 {[%clk 0:04:37]} 10... Ba5 {[%clk 0:04:20.8]} 11.
Be3 {[%clk 0:04:34.7]} 11... Nc6 {[%clk 0:04:13.7]} 12. O-O {[%clk 0:04:13.7]}
12... O-O-O {[%clk 0:04:09.9]} 13. Na3 {[%clk 0:04:07.1]} 13... Nge7 {[%clk
0:04:05.6]} 14. Nc4 {[%clk 0:04:03.6]} 14... Ne5 {[%clk 0:03:54.9]} 15. Nxa5
{[%clk 0:03:54.1]} 15... b6 {[%clk 0:03:46.3]} 16. Nb3 {[%clk 0:03:50.6]} 16...
Nxf3+ {[%clk 0:03:42.3]} 17. gxf3 {[%clk 0:03:50.5]} 17... h6 {[%clk 0:03:35]}
18. Rfd1 {[%clk 0:03:49.7]} 18... Rxd1+ {[%clk 0:03:28]} 19. Rxd1 {[%clk
0:03:49.6]} 19... Nc6 {[%clk 0:03:14.9]} 20. Kf1 {[%clk 0:03:42.4]} 20... g5
{[%clk 0:03:10.9]} 21. Ke2 {[%clk 0:03:37.4]} 21... Kb7 {[%clk 0:03:01.4]} 22.
Nd4 {[%clk 0:03:34.9]} 22... Nxd4+ {[%clk 0:02:56.4]} 23. Bxd4 {[%clk
0:03:34.8]} 23... Rf8 {[%clk 0:02:48]} 24. h4 {[%clk 0:03:32.3]} 24... gxh4
{[%clk 0:02:44.9]} 25. Rh1 {[%clk 0:03:31.2]} 25... f5 {[%clk 0:02:34.7]} 26.
Rxh4 {[%clk 0:03:27.6]} 26... f4 {[%clk 0:02:24.9]} 27. Rxh6 {[%clk 0:03:26.3]}
27... Rd8 {[%clk 0:02:19]} 28. Rf6 {[%clk 0:03:23.2]} 28... Rd7 {[%clk
0:02:16.3]} 29. Rxf4 {[%clk 0:03:21.8]} 29... Rd8 {[%clk 0:02:11.6]} 30. e5
{[%clk 0:03:21.1]} 30... a5 {[%clk 0:02:07.6]} 31. e6 {[%clk 0:03:20]} 31... Re8
{[%clk 0:02:03.1]} 32. Re4 {[%clk 0:03:19.2]} 32... Rh8 {[%clk 0:01:57.7]} 33.
e7 {[%clk 0:03:17.7]} 33... Kc8 {[%clk 0:01:52.6]} 34. e8=Q+ {[%clk 0:03:16.1]}
34... Rxe8 {[%clk 0:01:43.2]} 35. Rxe8+ {[%clk 0:03:16]} 35... Kb7 {[%clk
0:01:40.2]} 36. Re3 {[%clk 0:03:15.9]} 36... c6 {[%clk 0:01:35.2]} 37. f4 {[%clk
0:03:14.9]} 37... Ka6 {[%clk 0:01:26.1]} 38. f5 {[%clk 0:03:14.2]} 38... b5
{[%clk 0:01:23.5]} 39. f6 {[%clk 0:03:13.5]} 39... b4 {[%clk 0:01:21.5]} 40. f7
{[%clk 0:03:12.4]} 40... Kb5 {[%clk 0:01:13.1]} 41. f8=Q {[%clk 0:03:10.6]}
41... a4 {[%clk 0:01:06.2]} 42. Qc5+ {[%clk 0:03:09.8]} 42... Ka6 {[%clk
0:00:59.7]} 43. Qb6# {[%clk 0:03:09.7]} 1-0

[Event "Live Chess"]
[Site "Chess.com"]
[Date "2024.06.02"]
[Round "-"]
[White "Dhaydon19"]
[Black "MaksymYurii"]
[Result "1-0"]
[WhiteElo "2676"]
[BlackElo "952"]
[TimeControl "300"]
[EndTime "16:42:07 PDT"]
[Termination "Dhaydon19 won by checkmate"]

1. d4 {[%clk 0:04:57.6]} 1... d5 {[%clk 0:04:59]} 2. Nf3 {[%clk 0:04:57]} 2...
Nf6 {[%clk 0:04:55.1]} 3. c4 {[%clk 0:04:56.4]} 3... dxc4 {[%clk 0:04:53.8]} 4.
Nc3 {[%clk 0:04:55.1]} 4... e6 {[%clk 0:04:49.6]} 5. e3 {[%clk 0:04:54]} 5...
Bb4 {[%clk 0:04:47.2]} 6. Bxc4 {[%clk 0:04:52]} 6... Bxc3+ {[%clk 0:04:45]} 7.
bxc3 {[%clk 0:04:51.4]} 7... O-O {[%clk 0:04:41.1]} 8. O-O {[%clk 0:04:50.5]}
8... Nbd7 {[%clk 0:04:31.3]} 9. Qe2 {[%clk 0:04:49.3]} 9... Nb6 {[%clk
0:04:29.3]} 10. Bd3 {[%clk 0:04:47.9]} 10... a5 {[%clk 0:04:18.7]} 11. e4 {[%clk
0:04:46.8]} 11... Ng4 {[%clk 0:04:06.3]} 12. e5 {[%clk 0:04:42.7]} 12... f6
{[%clk 0:03:57.9]} 13. exf6 {[%clk 0:04:38.7]} 13... Rxf6 {[%clk 0:03:49.3]} 14.
Bg5 {[%clk 0:04:33.1]} 14... Nd5 {[%clk 0:03:29.2]} 15. Qe4 {[%clk 0:04:29.4]}
15... g6 {[%clk 0:03:08.7]} 16. Qxg4 {[%clk 0:03:17.3]} 16... e5 {[%clk
0:02:43.8]} 17. Qh4 {[%clk 0:03:15.5]} 17... Nxc3 {[%clk 0:02:21.8]} 18. Bxf6
{[%clk 0:03:04.2]} 18... Qd7 {[%clk 0:01:51.7]} 19. Bc4+ {[%clk 0:03:01]} 19...
Kf8 {[%clk 0:01:46.6]} 20. Qh6+ {[%clk 0:02:59.3]} 20... Ke8 {[%clk 0:01:44.5]}
21. Nxe5 {[%clk 0:02:56.9]} 21... Qxd4 {[%clk 0:01:32.6]} 22. Bf7# {[%clk
0:02:54]} 1-0

[Event "Live Chess"]
[Site "Chess.com"]
[Date "2024.06.02"]
[Round "-"]
[White "booktrunk"]
[Black "EPotapov05"]
[Result "0-1"]
[WhiteElo "1484"]
[BlackElo "1791"]
[TimeControl "300"]
[EndTime "16:42:12 PDT"]
[Termination "EPotapov05 won by resignation"]

1. d4 {[%clk 0:04:56.9]} 1... d5 {[%clk 0:04:58.4]} 2. Nc3 {[%clk 0:04:47.5]}
2... Nf6 {[%clk 0:04:56.3]} 3. Bf4 {[%clk 0:04:44.4]} 3... c6 {[%clk 0:04:51]}
4. Nf3 {[%clk 0:04:30]} 4... Bf5 {[%clk 0:04:49.2]} 5. h3 {[%clk 0:04:27.9]}
5... h6 {[%clk 0:04:48.1]} 6. e3 {[%clk 0:04:26.9]} 6... e6 {[%clk 0:04:47.1]}
7. Bd3 {[%clk 0:04:25.9]} 7... Bxd3 {[%clk 0:04:45.4]} 8. Qxd3 {[%clk
0:04:25.8]} 8... Bd6 {[%clk 0:04:44.5]} 9. Bxd6 {[%clk 0:04:23.7]} 9... Qxd6
{[%clk 0:04:43.5]} 10. O-O {[%clk 0:04:21.1]} 10... Nbd7 {[%clk 0:04:42]} 11.
Rae1 {[%clk 0:04:16.1]} 11... O-O {[%clk 0:04:40.4]} 12. e4 {[%clk 0:04:14.5]}
12... dxe4 {[%clk 0:04:39.2]} 13. Nxe4 {[%clk 0:04:12.9]} 13... Nxe4 {[%clk
0:04:38.3]} 14. Qxe4 {[%clk 0:04:11.5]} 14... Nf6 {[%clk 0:04:38.2]} 15. Qe5
{[%clk 0:04:09.2]} 15... Rfd8 {[%clk 0:04:34.8]} 16. Qxd6 {[%clk 0:04:07]} 16...
Rxd6 {[%clk 0:04:33.5]} 17. c3 {[%clk 0:04:05.8]} 17... Rad8 {[%clk 0:04:29.5]}
18. Ne5 {[%clk 0:03:59.3]} 18... Nd7 {[%clk 0:04:28]} 19. Nc4 {[%clk 0:03:57.6]}
19... Rd5 {[%clk 0:04:26.3]} 20. Re3 {[%clk 0:03:54.2]} 20... c5 {[%clk
0:04:15.9]} 21. dxc5 {[%clk 0:03:51.7]} 21... Nxc5 {[%clk 0:04:14.6]} 22. Rfe1
{[%clk 0:03:45.3]} 22... Rd1 {[%clk 0:04:03.8]} 23. b4 {[%clk 0:03:31.1]} 23...
Rxe1+ {[%clk 0:04:01.8]} 24. Rxe1 {[%clk 0:03:29.1]} 24... Na4 {[%clk
0:03:53.4]} 25. Kf1 {[%clk 0:03:24.4]} 25... Nxc3 {[%clk 0:03:51.2]} 26. a3
{[%clk 0:03:21.4]} 26... Rd1 {[%clk 0:03:47.1]} 27. Rxd1 {[%clk 0:03:18.4]}
27... Nxd1 {[%clk 0:03:45.9]} 28. Ke2 {[%clk 0:03:16.2]} 28... Nc3+ {[%clk
0:03:44]} 29. Kd3 {[%clk 0:03:13.9]} 29... Nb5 {[%clk 0:03:42.8]} 30. a4 {[%clk
0:03:11.9]} 30... Nc7 {[%clk 0:03:40.8]} 31. Nd6 {[%clk 0:03:10.8]} 31... b6
{[%clk 0:03:36.3]} 32. Nc8 {[%clk 0:03:09]} 32... a5 {[%clk 0:03:28.1]} 33. b5
{[%clk 0:03:00.9]} 33... Nd5 {[%clk 0:03:21.1]} 34. f3 {[%clk 0:02:54.9]} 34...
Kf8 {[%clk 0:03:20.2]} 35. Kd4 {[%clk 0:02:52.9]} 35... Ke8 {[%clk 0:03:15.6]}
36. Nd6+ {[%clk 0:02:51.2]} 36... Ke7 {[%clk 0:03:12.6]} 37. Nc8+ {[%clk
0:02:49.5]} 37... Kd7 {[%clk 0:03:06.7]} 38. Na7 {[%clk 0:02:48.1]} 38... Ne7
{[%clk 0:02:57.5]} 39. g3 {[%clk 0:02:44.2]} 39... Kc7 {[%clk 0:02:55.2]} 40.
Ke5 {[%clk 0:02:37.5]} 40... Kb7 {[%clk 0:02:50.3]} 41. Kd6 {[%clk 0:02:36]}
41... Nf5+ {[%clk 0:02:47.1]} 42. Ke5 {[%clk 0:02:33.5]} 42... Kxa7 {[%clk
0:02:42.6]} 0-1

[Event "Live Chess"]
[Site "Chess.com"]
[Date "2024.06.02"]
[Round "-"]
[White "Tushinskiy"]
[Black "alicechristina"]
[Result "1-0"]
[WhiteElo "2212"]
[BlackElo "1924"]
[TimeControl "300"]
[EndTime "16:42:22 PDT"]
[Termination "Tushinskiy won by checkmate"]

1. d4 {[%clk 0:04:54.2]} 1... d5 {[%clk 0:04:59]} 2. c3 {[%clk 0:04:54.1]} 2...
Nf6 {[%clk 0:04:56.9]} 3. Nf3 {[%clk 0:04:54]} 3... c5 {[%clk 0:04:56.1]} 4. Bf4
{[%clk 0:04:46.6]} 4... e6 {[%clk 0:04:54.3]} 5. e3 {[%clk 0:04:43.6]} 5... Bd6
{[%clk 0:04:52.2]} 6. Bg3 {[%clk 0:04:42.7]} 6... cxd4 {[%clk 0:04:50]} 7. exd4
{[%clk 0:04:39.8]} 7... Nc6 {[%clk 0:04:49.6]} 8. Bd3 {[%clk 0:04:38.3]} 8...
O-O {[%clk 0:04:48.6]} 9. Nbd2 {[%clk 0:04:21.8]} 9... Re8 {[%clk 0:04:45.4]}
10. Qe2 {[%clk 0:04:19.3]} 10... e5 {[%clk 0:04:43.8]} 11. dxe5 {[%clk
0:04:14.5]} 11... Nxe5 {[%clk 0:04:35.4]} 12. Nxe5 {[%clk 0:04:13]} 12... Bxe5
{[%clk 0:04:34.3]} 13. Bxe5 {[%clk 0:04:11.8]} 13... Nd7 {[%clk 0:04:33.2]} 14.
f4 {[%clk 0:04:06.4]} 14... f6 {[%clk 0:04:27.9]} 15. Qh5 {[%clk 0:04:04.7]}
15... fxe5 {[%clk 0:04:21.8]} 16. Qxh7+ {[%clk 0:03:59]} 16... Kf8 {[%clk
0:04:20.8]} 17. Bg6 {[%clk 0:03:52.4]} 17... exf4+ {[%clk 0:04:16.2]} 18. Kd1
{[%clk 0:03:49.4]} 18... Nf6 {[%clk 0:03:53.8]} 19. Qh8+ {[%clk 0:03:46.1]}
19... Ng8 {[%clk 0:03:52]} 20. Rf1 {[%clk 0:03:44]} 20... Bg4+ {[%clk
0:03:44.7]} 21. Kc1 {[%clk 0:03:41.5]} 21... Qf6 {[%clk 0:03:37.1]} 22. Bxe8
{[%clk 0:03:33.2]} 22... Rxe8 {[%clk 0:03:35.9]} 23. h3 {[%clk 0:03:29.1]} 23...
Be2 {[%clk 0:03:30]} 24. Re1 {[%clk 0:03:27.6]} 24... d4 {[%clk 0:03:23.9]} 25.
c4 {[%clk 0:03:10.2]} 25... d3 {[%clk 0:03:18.2]} 26. Nf3 {[%clk 0:03:03.6]}
26... b5 {[%clk 0:03:14.8]} 27. Qh5 {[%clk 0:02:59.7]} 27... bxc4 {[%clk
0:03:08.3]} 28. Qc5+ {[%clk 0:02:56.5]} 28... Qe7 {[%clk 0:02:58.6]} 29. Qxe7+
{[%clk 0:02:53]} 29... Rxe7 {[%clk 0:02:56.9]} 30. Kd2 {[%clk 0:02:51.5]} 30...
Nf6 {[%clk 0:02:55.5]} 31. Kc3 {[%clk 0:02:42.3]} 31... Ne4+ {[%clk 0:02:46.9]}
32. Kd4 {[%clk 0:02:40.1]} 32... Ng3 {[%clk 0:02:33.7]} 33. Nd2 {[%clk
0:02:33.3]} 33... Nf5+ {[%clk 0:02:16.4]} 34. Kxc4 {[%clk 0:02:30.9]} 34... Ne3+
{[%clk 0:02:15.5]} 35. Kc3 {[%clk 0:02:24.6]} 35... Nc2 {[%clk 0:02:11.1]} 36.
Rac1 {[%clk 0:02:20.5]} 36... Nxe1 {[%clk 0:02:02.5]} 37. Rxe1 {[%clk
0:02:20.4]} 37... Rc7+ {[%clk 0:02:01.4]} 38. Kb3 {[%clk 0:02:11.7]} 38... Rc2
{[%clk 0:01:59.9]} 39. Nf3 {[%clk 0:02:04.7]} 39... Bxf3 {[%clk 0:01:52.3]} 40.
gxf3 {[%clk 0:02:02.3]} 40... Re2 {[%clk 0:01:51.2]} 41. Rd1 {[%clk 0:02:00.6]}
41... Re3 {[%clk 0:01:50.3]} 42. Kc3 {[%clk 0:01:57.1]} 42... Rxf3 {[%clk
0:01:49]} 43. Rxd3 {[%clk 0:01:55.3]} 43... Rxd3+ {[%clk 0:01:38.2]} 44. Kxd3
{[%clk 0:01:55.2]} 44... g5 {[%clk 0:01:37]} 45. Ke4 {[%clk 0:01:54.2]} 45...
Ke7 {[%clk 0:01:35.9]} 46. h4 {[%clk 0:01:53.3]} 46... gxh4 {[%clk 0:01:31.9]}
47. Kxf4 {[%clk 0:01:52.2]} 47... Kd6 {[%clk 0:01:31.4]} 48. Kg4 {[%clk
0:01:51]} 48... Kc5 {[%clk 0:01:30.6]} 49. Kxh4 {[%clk 0:01:50.2]} 49... Kc4
{[%clk 0:01:30.2]} 50. Kg3 {[%clk 0:01:48.2]} 50... a5 {[%clk 0:01:29.7]} 51.
Kf2 {[%clk 0:01:46.5]} 51... a4 {[%clk 0:01:29.1]} 52. Ke2 {[%clk 0:01:45.1]}
52... a3 {[%clk 0:01:26.5]} 53. b3+ {[%clk 0:01:43.1]} 53... Kc3 {[%clk
0:01:25.8]} 54. Kd1 {[%clk 0:01:41.2]} 54... Kb2 {[%clk 0:01:25.1]} 55. b4
{[%clk 0:01:40]} 55... Kxa2 {[%clk 0:01:24.4]} 56. b5 {[%clk 0:01:38.7]} 56...
Kb1 {[%clk 0:01:20.5]} 57. b6 {[%clk 0:01:37.6]} 57... a2 {[%clk 0:01:20]} 58.
b7 {[%clk 0:01:36.4]} 58... a1=Q {[%clk 0:01:19.2]} 59. b8=Q+ {[%clk 0:01:35.7]}
59... Ka2+ {[%clk 0:01:18.4]} 60. Kc2 {[%clk 0:01:32.9]} 60... Qd4 {[%clk
0:00:42]} 61. Qb3+ {[%clk 0:01:29.8]} 61... Ka1 {[%clk 0:00:38.9]} 62. Qb1#
{[%clk 0:01:29.7]} 1-0

[Event "Live Chess"]
[Site "Chess.com"]
[Date "2024.06.02"]
[Round "-"]
[White "Outspanner"]
[Black "NebodarMatevich"]
[Result "1-0"]
[WhiteElo "1561"]
[BlackElo "1547"]
[TimeControl "300"]
[EndTime "16:42:26 PDT"]
[Termination "Outspanner won by resignation"]

1. d4 {[%clk 0:04:57.6]} 1... Nf6 {[%clk 0:04:59.2]} 2. Bg5 {[%clk 0:04:55.9]}
2... g6 {[%clk 0:04:58.3]} 3. Bxf6 {[%clk 0:04:54.1]} 3... Bg7 {[%clk 0:04:58]}
4. Bxg7 {[%clk 0:04:52.4]} 4... e5 {[%clk 0:04:52]} 5. Bxh8 {[%clk 0:04:50.5]}
5... f5 {[%clk 0:04:51.1]} 6. Bxe5 {[%clk 0:04:48.1]} 6... d5 {[%clk 0:04:50.2]}
7. Nf3 {[%clk 0:04:44.2]} 7... Qd6 {[%clk 0:04:49.8]} 8. Bxd6 {[%clk 0:04:42.5]}
8... Nc6 {[%clk 0:04:49.7]} 9. Bxc7 {[%clk 0:04:41]} 9... Be6 {[%clk 0:04:48.9]}
10. Ne5 {[%clk 0:04:37.7]} 10... Nb4 {[%clk 0:04:48.8]} 11. c3 {[%clk
0:04:36.3]} 1-0